fUST/lending_fUST_20240924
["ID","MTS","AMOUNT","RATE_DAILY","PERIOD"]
[339011375,1727121057529,-500.0,0.00033287,30]
[339011376,1727121057539,-500.0,0.00033287,30]
[339011377,1727121057550,-500.0,0.00033287,30]
[339011378,1727121057559,-500.0,0.00033287,30]
[339011379,1727121057569,-500.0,0.00033287,30]
[339011380,1727121057578,-1998.22,0.00033287,30]
[339011381,1727121057588,-500.0,0.00033287,30]
[339011382,1727121057598,-151.0,0.00033287,14]
[339011383,1727121057607,-500.0,0.00033287,30]
[339011384,1727121057617,-696.93,0.00033287,25]
[339011385,1727121057626,-633.14606128,0.00033287,30]
[339011386,1727121057636,-500.0,0.00033287,30]
[339011387,1727121057645,-500.0,0.00033287,30]
[339011388,1727121057654,-500.0,0.00033287,30]
[339011389,1727121057663,-500.0,0.00033287,30]
[339011390,1727121057672,-500.0,0.00033287,30]
[339011391,1727121057682,-500.0,0.00033287,30]
[339011392,1727121057690,-286.101278,0.00033287,14]
[339011393,1727121057700,-500.0,0.00033287,30]
[339011394,1727121057709,-500.0,0.00033287,30]
[339011395,1727121057718,-500.0,0.00033287,30]
[339011396,1727121057727,-500.0,0.00033287,30]
[339011397,1727121057737,-500.0,0.00033287,30]
[339011398,1727121057746,-500.0,0.00033287,30]
[339011399,1727121057755,-500.0,0.00033287,30]
[339011400,1727121057764,-500.0,0.00033287,30]
[339011401,1727121057773,-1000.0,0.00033287,30]
[339011402,1727121057782,-375.69329546,0.00033287,30]
[339011403,1727121057791,-176.59753781,0.00033287,30]
[339011404,1727121057801,-500.0,0.00033287,30]
[339011405,1727121057811,-500.0,0.00033287,30]
[339011406,1727121057820,-500.0,0.00033287,30]
[339011407,1727121057830,-500.0,0.00033287,30]
[339011408,1727121057839,-500.0,0.00033287,30]
[339011409,1727121057848,-500.0,0.00033287,30]
[339011410,1727121057857,-500.0,0.00033287,30]
[339011411,1727121057866,-500.0,0.00033287,30]
[339011412,1727121057875,-151.0,0.00033287,14]
[339011413,1727121057884,-500.0,0.00033287,30]
[339011414,1727121057893,-500.0,0.00033287,30]
[339011415,1727121057902,-500.0,0.00033287,30]
[339011416,1727121057912,-519.07510605,0.00033287,30]
[339011417,1727121057922,-500.0,0.00033287,30]
[339011418,1727121057932,-500.0,0.00033287,30]
[339011419,1727121057942,-500.0,0.00033287,30]
[339011420,1727121057951,-500.0,0.00033287,30]
[339011421,1727121057962,-151.0,0.00033287,14]
[339011422,1727121057971,-500.0,0.00033287,30]
[339011423,1727121057981,-500.0,0.00033287,30]
[339011424,1727121057990,-453.52623953,0.00033287,30]
[339011425,1727121057999,-500.0,0.00033287,30]
[339011426,1727121058008,-317.654269,0.00033287,14]
[339011427,1727121058018,-636.8,0.00033287,30]
[339011428,1727121058027,-317.654269,0.00033287,14]
[339011429,1727121058036,-500.0,0.00033287,30]
[339011430,1727121058047,-500.0,0.00033287,5]
[339011431,1727121058061,-500.0,0.00033287,30]
[339011432,1727121058070,-500.0,0.00033287,30]
[339011433,1727121058079,-500.0,0.00033287,30]
[339011434,1727121058089,-151.0,0.00033287,14]
[339011435,1727121058098,-516.89507787,0.00033287,30]
[339011436,1727121058107,-500.0,0.00033287,30]
[339011437,1727121058116,-500.0,0.00033287,30]
[339011438,1727121058125,-500.0,0.00033287,30]
[339011439,1727121058134,-151.0,0.00033287,14]
[339011440,1727121058144,-151.0,0.00033287,14]
[339011441,1727121058154,-151.0,0.00033287,14]
[339011442,1727121058164,-605.85208194,0.00033287,30]
[339011443,1727121058174,-500.0,0.00033287,30]
[339011444,1727121058184,-500.0,0.00033287,30]
[339011445,1727121058194,-500.0,0.00033287,30]
[339011446,1727121058203,-500.0,0.00033287,30]
[339011447,1727121058213,-500.0,0.00033287,30]
[339011448,1727121058222,-500.0,0.00033287,30]
[339011449,1727121058232,-500.0,0.00033287,30]
[339011450,1727121058241,-3211.99,0.00033287,30]
[339011451,1727121058250,-502.74436418,0.00033287,10]
[339011452,1727121058260,-647.73916848,0.00033287,120]
[339011453,1727121058269,-755.81,0.00033287,30]
[339011454,1727121058278,-500.0,0.00033287,30]
[339011455,1727121058287,-292.04480636,0.00033287,30]
[339011456,1727121058300,-500.0,0.00033287,30]
[339011457,1727121058309,-500.0,0.00033287,30]
[339011458,1727121058318,-500.0,0.00033287,30]
[339011459,1727121058328,-500.0,0.00033287,30]
[339011460,1727121058338,-500.0,0.00033287,30]
[339011461,1727121058348,-258.724383,0.00033287,14]
[339011462,1727121058357,-258.724383,0.00033287,14]
[339011463,1727121058367,-470.88099192,0.00033287,30]
[339011464,1727121058376,-500.0,0.00033287,30]
[339011465,1727121058390,-500.0,0.00033287,30]
[339011466,1727121058406,-500.0,0.00033287,30]
[339011467,1727121058431,-500.0,0.00033287,2]
[339011468,1727121058443,-500.0,0.00033287,30]
[339011469,1727121058458,-500.0,0.00033287,30]
[339011470,1727121058475,-453.48,0.00033287,30]
[339011471,1727121058488,-500.0,0.00033287,30]
[339011472,1727121058503,-622.29,0.00033287,30]
[339011473,1727121058518,-500.0,0.00033287,30]
[339011474,1727121058533,-500.0,0.00033287,30]
[339011475,1727121058548,-500.0,0.00033287,30]
[339011476,1727121058561,-500.0,0.00033287,30]
[339011477,1727121058575,-282.11662105,0.00033287,30]
[339011478,1727121058589,-500.0,0.00033287,30]
[339011479,1727121058604,-292.169467,0.00033287,14]
[339011480,1727121058617,-852.19,0.00033287,2]
[339011481,1727121058629,-1621.17,0.00033287,30]
[339011482,1727121058642,-500.0,0.00033287,30]
[339011483,1727121058657,-500.0,0.00033287,30]
[339011484,1727121058670,-500.0,0.00033287,30]
[339011485,1727121058686,-192.072064,0.00033287,14]
[339011486,1727121058700,-500.0,0.00033287,30]
[339011487,1727121058713,-192.072064,0.00033287,14]
[339011488,1727121058724,-500.0,0.00033287,30]
[339011489,1727121058735,-500.0,0.00033287,30]
[339011490,1727121058749,-500.0,0.00033287,30]
[339011491,1727121058764,-500.0,0.00033287,30]
[339011492,1727121058776,-500.0,0.00033287,30]
[339011493,1727121058789,-500.0,0.00033287,30]
[339011494,1727121058801,-500.0,0.00033287,30]
[339011495,1727121058815,-500.0,0.00033287,30]
[339011496,1727121058828,-625.74,0.00033287,30]
[339011497,1727121058840,-500.0,0.00033287,30]
[339011498,1727121058851,-500.0,0.00033287,30]
[339011499,1727121058865,-928.36,0.00033287,30]
[339011500,1727121058879,-500.0,0.00033287,30]
[339011501,1727121058891,-500.0,0.00033287,30]
[339011502,1727121058903,-525.45,0.00033287,30]
[339011503,1727121058916,-500.0,0.00033287,30]
[339011504,1727121058928,-500.0,0.00033287,30]
[339011505,1727121058940,-500.0,0.00033287,30]
[339011506,1727121058954,-500.0,0.00033287,7]
[339011507,1727121058967,-500.0,0.00033287,30]
[339011508,1727121058979,-500.0,0.00033287,30]
[339011509,1727121058992,-500.0,0.00033287,30]
[339011510,1727121059003,-468.52525314,0.00033287,30]
[339011511,1727121059015,-353.67249999,0.00033287,30]
[339011512,1727121059027,-500.0,0.00033287,30]
[339011513,1727121059039,-500.0,0.00033287,30]
[339011514,1727121059052,-500.0,0.00033287,30]
[339011515,1727121059064,-703.64,0.00033287,30]
[339011516,1727121059076,-500.0,0.00033287,30]
[339011517,1727121059088,-462.3874757,0.00033287,30]
[339011518,1727121059100,-500.0,0.00033287,30]
[339011519,1727121059112,-1000.0,0.00033287,120]
[339011520,1727121059124,-500.0,0.00033287,30]
[339011521,1727121059136,-500.0,0.00033287,30]
[339011522,1727121059147,-500.0,0.00033287,30]
[339011523,1727121059159,-500.0,0.00033287,30]
[339011524,1727121059171,-525.98,0.00033287,30]
[339011525,1727121059183,-500.0,0.00033287,30]
[339011526,1727121059195,-500.0,0.00033287,30]
[339011527,1727121059207,-584.66,0.00033287,30]
[339011528,1727121059220,-229.92,0.00033287,30]
[339011529,1727121059232,-500.0,0.00033287,30]
[339011530,1727121059244,-500.0,0.00033287,30]
[339011531,1727121059256,-500.0,0.00033287,30]
[339011532,1727121059268,-409.22594421,0.00033287,30]
[339011533,1727121059280,-500.0,0.00033287,30]
[339011534,1727121059293,-500.0,0.00033287,120]
[339011535,1727121059305,-500.0,0.00033287,30]
[339011536,1727121059317,-500.0,0.00033287,30]
[339011537,1727121059329,-500.0,0.00033287,30]
[339011538,1727121059341,-500.0,0.00033287,30]
[339011539,1727121059352,-500.0,0.00033287,30]
[339011540,1727121059365,-784.75,0.00033287,30]
[339011541,1727121059376,-500.0,0.00033287,30]
[339011542,1727121059388,-1297.99,0.00033287,30]
[339011543,1727121059400,-500.0,0.00033287,30]
[339011544,1727121059411,-500.0,0.00033287,30]
[339011545,1727121059424,-503.92,0.00033287,30]
[339011546,1727121059436,-1205.6,0.00033287,7]
[339011547,1727121059448,-500.0,0.00033287,30]
[339011548,1727121059460,-23287.54,0.00033287,18]
[339011549,1727121059475,-151.0,0.00033287,14]
[339011550,1727121059487,-532.77,0.00033287,30]
[339011551,1727121059499,-591.42,0.00033287,30]
[339011552,1727121059511,-500.0,0.00033287,30]
[339011553,1727121059524,-500.0,0.00033287,30]
[339011554,1727121059535,-734.25,0.00033287,30]
[339011555,1727121059549,-2861.2,0.00033287,21]
[339011556,1727121059561,-500.0,0.00033287,30]
[339011557,1727121059573,-500.0,0.00033287,30]
[339011558,1727121059584,-500.0,0.00033287,30]
[339011559,1727121059596,-497.48238448,0.00033287,30]
[339011560,1727121059608,-534.06,0.00033287,30]
[339011561,1727121059621,-500.0,0.00033287,30]
[339011562,1727121059633,-500.0,0.00033287,30]
[339011563,1727121059645,-500.0,0.00033287,30]
[339011564,1727121059657,-500.0,0.00033287,30]
[339011565,1727121059669,-725.5,0.00033287,30]
[339011566,1727121059682,-560.39,0.00033287,30]
[339011567,1727121059693,-1570.869745,0.00033287,14]
[339011568,1727121059705,-500.0,0.00033287,30]
[339011569,1727121059716,-457.46748162,0.00033287,30]
[339011570,1727121059728,-1570.869745,0.00033287,14]
[339011571,1727121059740,-848.3957,0.00033287,14]
[339011572,1727121059752,-500.0,0.00033287,30]
[339011573,1727121059764,-500.0,0.00033287,30]
[339011574,1727121059776,-848.3957,0.00033287,14]
[339011575,1727121059788,-954.83,0.00033287,30]
[339011576,1727121059800,-502.8743591,0.00033287,7]
[339011577,1727121059812,-500.0,0.00033287,30]
[339011578,1727121059824,-790.25,0.00033287,7]
[339011579,1727121059836,-500.0,0.00033287,30]
[339011580,1727121059848,-500.0,0.00033287,30]
[339011581,1727121059860,-151.0,0.00033287,14]
[339011582,1727121059870,-500.0,0.00033287,30]
[339011583,1727121059880,-181.633631,0.00033287,14]
[339011584,1727121059890,-554.73,0.00033287,30]
[339011585,1727121059900,-181.633631,0.00033287,14]
[339011586,1727121059911,-500.0,0.00033287,30]
[339011587,1727121059920,-500.0,0.00033287,30]
[339011588,1727121060115,-500.0,0.00033287,30]
[339011589,1727121060134,-500.0,0.00033287,30]
[339011590,1727121060148,-520.05,0.00033287,30]
[339011591,1727121060158,-500.0,0.00033287,30]
[339011592,1727121060169,-500.0,0.00033287,30]
[339011593,1727121060179,-500.0,0.00033287,30]
[339011594,1727121060188,-901.78,0.00033287,30]
[339011595,1727121060198,-500.0,0.00033287,30]
[339011596,1727121060208,-640.79,0.00033287,30]
[339011597,1727121060218,-151.0,0.00033287,14]
[339011598,1727121060227,-500.0,0.00033287,30]
[339011599,1727121060236,-595.69,0.00033287,30]
[339011600,1727121060245,-500.0,0.00033287,30]
[339011601,1727121060255,-500.0,0.00033287,30]
[339011602,1727121060264,-191.905466,0.00033287,14]
[339011603,1727121060274,-510.03,0.00033287,30]
[339011604,1727121060284,-153.514374,0.00033287,14]
[339011605,1727121060293,-1163.77,0.00033287,30]
[339011606,1727121060304,-545.504687,0.00033287,14]
[339011607,1727121060313,-153.514374,0.00033287,14]
[339011608,1727121060322,-500.0,0.00033287,30]
[339011609,1727121060332,-545.504687,0.00033287,14]
[339011610,1727121060342,-500.0,0.00033287,30]
[339011611,1727121060352,-502.49129658,0.00033287,30]
[339011612,1727121060362,-500.0,0.00033287,30]
[339011613,1727121060372,-500.0,0.00033287,30]
[339011614,1727121060382,-500.0,0.00033287,30]
[339011615,1727121060391,-544.37,0.00033287,30]
[339011616,1727121060400,-500.0,0.00033287,30]
[339011617,1727121060410,-500.0,0.00033287,30]
[339011618,1727121060419,-500.0,0.00033287,30]
[339011619,1727121060429,-500.0,0.00033287,30]
[339011620,1727121060439,-519.31,0.00033287,30]
[339011621,1727121060448,-500.0,0.00033287,30]
[339011622,1727121060458,-500.0,0.00033287,30]
[339011623,1727121060476,-500.0,0.00033287,30]
[339011624,1727121060485,-500.0,0.00033287,30]
[339011625,1727121060495,-531.10632031,0.00033287,30]
[339011626,1727121060504,-500.0,0.00033287,30]
[339011627,1727121060515,-500.0,0.00033287,30]
[339011628,1727121060525,-756.67,0.00033287,30]
[339011629,1727121060535,-500.0,0.00033287,30]
[339011630,1727121060546,-1115.39,0.00033287,30]
[339011631,1727121060557,-500.0,0.00033287,30]
[339011632,1727121060566,-500.0,0.00033287,30]
[339011633,1727121060575,-320.54793336,0.00033287,30]
[339011634,1727121060584,-500.0,0.00033287,30]
[339011635,1727121060593,-500.0,0.00033287,30]
[339011636,1727121060602,-500.0,0.00033287,30]
[339011637,1727121060612,-500.0,0.00033287,30]
[339011638,1727121060621,-231.40029954,0.00033287,30]
[339011639,1727121060630,-1080.16,0.00033287,30]
[339011640,1727121060640,-500.0,0.00033287,30]
[339011641,1727121060649,-500.0,0.00033287,30]
[339011642,1727121060659,-500.0,0.00033287,30]
[339011643,1727121060668,-500.0,0.00033287,30]
[339011644,1727121060678,-500.0,0.00033287,30]
[339011645,1727121060688,-500.0,0.00033287,30]
[339011646,1727121060698,-2444.024941,0.00033287,14]
[339011647,1727121060708,-500.0,0.00033287,30]
[339011648,1727121060718,-155.299056,0.00033287,14]
[339011649,1727121060728,-2444.024941,0.00033287,14]
[339011650,1727121060737,-500.0,0.00033287,30]
[339011651,1727121060747,-500.0,0.00033287,30]
[339011652,1727121060756,-500.0,0.00033287,30]
[339011653,1727121060766,-193.875565,0.00033287,14]
[339011654,1727121060776,-500.0,0.00033287,30]
[339011655,1727121060785,-193.875565,0.00033287,14]
[339011656,1727121060794,-500.0,0.00033287,30]
[339011657,1727121060804,-571.59,0.00033287,30]
[339011658,1727121060814,-500.0,0.00033287,30]
[339011659,1727121060824,-1578.6927593,0.00033329,2]
[339011660,1727121060833,-6258.60208527,0.00033333,3]
[339011661,1727121061026,-3741.39791473,0.00033333,3]
[339011662,1727121061036,-151.0,0.00033333,14]
[339011663,1727121061045,-676.66787,0.00033333,14]
[339011664,1727121061060,-676.66787,0.00033333,14]
[339011665,1727121061069,-2748.032347,0.00033333,14]
[339011666,1727121061078,-2748.032347,0.00033333,14]
[339011667,1727121061087,-3000.0,0.000334,15]
[339011668,1727121061097,-3000.0,0.0003341,15]
[339011669,1727121061106,-3000.0,0.0003342,15]
[339011670,1727121061115,-517.90391167,0.00033421,5]
[339011671,1727121061124,-151.0,0.00033424,14]
[339011672,1727121061134,-151.0,0.00033424,14]
[339011673,1727121061143,-151.0,0.00033424,14]
[339011674,1727121061153,-500.0,0.00033424,30]
[339011675,1727121061162,-569.66399,0.00033424,14]
[339011676,1727121061172,-569.66399,0.00033424,14]
[339011677,1727121061182,-153.83817575,0.00033424,30]
[339011678,1727121061191,-301.54684925,0.00033424,30]
[339011679,1727121061201,-500.0,0.00033424,30]
[339011680,1727121061210,-232.15805271,0.00033424,30]
[339011681,1727121061542,-151.0,0.00032876,7]
[339011682,1727121061556,-500.0,0.00033013,30]
[339011683,1727121061566,-151.0,0.00033013,14]
[339011684,1727121061576,-50.1341958,0.0003315,30]
[339011699,1727122031151,-308.187462,0.00027397,2]
[339011700,1727122031173,-95.1852239,0.00028034,2]
[339011701,1727122033105,-2736.9897877,0.00027826,2]
[339011702,1727122033127,-154.8147761,0.00028034,2]
[339011703,1727122033149,-250.0,0.00028111,2]
[339011704,1727122033170,-250.0,0.00028188,2]
[339011705,1727122033192,-250.0,0.00028265,2]
[339011706,1727122033213,-250.0,0.00028342,2]
[339011707,1727122033234,-250.0,0.00028419,2]
[339011708,1727122033256,-250.0,0.00028496,2]
[339011709,1727122033277,-250.0,0.00028572,2]
[339011710,1727122033298,-250.0,0.00028649,2]
[339011711,1727122033320,-250.0,0.00028726,2]
[339011712,1727122033343,-189.650857,0.00028823,2]
[339011713,1727122033364,-300.0,0.00028952,2]
[339011714,1727122033385,-300.0,0.00028952,2]
[339011715,1727122033405,-15516.30334455,0.00028953,2]
[339011716,1727122033434,-2116.1087599,0.00028953,2]
[339011749,1727122232123,-515.858489,0.00028528,2]
[339011751,1727122232135,-250.0,0.00028803,2]
[339011753,1727122232146,-250.0,0.0002888,2]
[339011755,1727122232156,-300.0,0.00028952,2]
[339011757,1727122232166,-300.0,0.00028952,2]
[339011759,1727122232176,-7267.58789555,0.00028953,2]
[339011761,1727122232186,-250.0,0.00028957,2]
[339011763,1727122232196,-249.467162,0.00029023,2]
[339011765,1727122232206,-250.0,0.00029034,2]
[339011767,1727122232215,-250.0,0.00029111,2]
[339011769,1727122232225,-250.0,0.00029187,2]
[339011771,1727122232235,-515.858489,0.00029213,2]
[339011773,1727122232244,-250.0,0.00029264,2]
[339011775,1727122232254,-250.0,0.00029341,2]
[339011777,1727122232264,-250.0,0.00029418,2]
[339011779,1727122232273,-250.0,0.00029495,2]
[339011781,1727122232283,-515.858489,0.00029898,2]
[339011783,1727122232293,-500.0,0.00030878,2]
[339011785,1727122232304,-500.0,0.00030878,2]
[339011787,1727122232314,-500.0,0.00030878,2]
[339011789,1727122232324,-183.56316374,0.00030878,2]
[339011791,1727122232334,-500.0,0.00030878,2]
[339011793,1727122232344,-500.0,0.00030878,2]
[339011795,1727122232354,-500.0,0.00030878,2]
[339011797,1727122232364,-500.0,0.00030878,2]
[339011799,1727122232373,-233.03747128,0.00030878,2]
[339011801,1727122232383,-500.0,0.00030878,2]
[339011803,1727122232392,-224.253,0.00030879,27]
[339011805,1727122232402,-420.0,0.00031237,2]
[339011807,1727122232412,-627.8390993,0.00031615,2]
[339011809,1727122232422,-187.5,0.0003181,6]
[339011811,1727122232431,-420.0,0.00031847,2]
[339011813,1727122232441,-1268.41936746,0.00032085,2]
[339011815,1727122232451,-153.0,0.00032185,2]
[339011817,1727122232460,-62.07174598,0.00032185,2]
[339011832,1727122238357,-111.44350714,0.00030878,2]
[339011833,1727122238439,-438.55649286,0.00030878,2]
[339011834,1727122238448,-262.16219193,0.00030878,2]
[339011835,1727122238490,-237.83780807,0.00030878,2]
[339011836,1727122238499,-500.0,0.00030878,2]
[339011837,1727122238510,-500.0,0.00030878,2]
[339011838,1727122238520,-500.0,0.00030878,2]
[339011839,1727122238530,-500.0,0.00030878,2]
[339011840,1727122238539,-500.0,0.00030878,2]
[339011841,1727122238549,-500.0,0.00030878,2]
[339011842,1727122238558,-500.0,0.00030878,2]
[339011843,1727122238567,-375.30216516,0.00030878,2]
[339011844,1727122238577,-500.0,0.00030878,2]
[339011845,1727122238586,-500.0,0.00030878,2]
[339011846,1727122238595,-500.0,0.00030878,2]
[339011847,1727122238605,-500.0,0.00030878,2]
[339011848,1727122238615,-500.0,0.00030878,2]
[339011849,1727122238624,-500.0,0.00030878,2]
[339011850,1727122238634,-500.0,0.00030878,2]
[339011851,1727122238643,-500.0,0.00030878,2]
[339011852,1727122238653,-500.0,0.00030878,2]
[339011853,1727122238663,-500.0,0.00030878,2]
[339011854,1727122238672,-500.0,0.00030878,2]
[339011855,1727122238681,-500.0,0.00030878,2]
[339011856,1727122238691,-90.92825402,0.00032185,2]
[339011857,1727122238700,-153.0,0.00032185,2]
[339011858,1727122238710,-153.0,0.00032185,2]
[339011859,1727122238719,-153.0,0.00032185,2]
[339011860,1727122238735,-153.0,0.00032185,2]
[339011861,1727122238744,-153.0,0.00032185,2]
[339011862,1727122238753,-153.0,0.00032185,2]
[339011863,1727122238762,-153.0,0.00032185,2]
[339011864,1727122238771,-153.0,0.00032185,2]
[339011865,1727122238781,-153.0,0.00032185,2]
[339011866,1727122238790,-153.0,0.00032186,2]
[339011867,1727122238799,-153.0,0.00032186,2]
[339011868,1727122238809,-153.0,0.00032186,2]
[339011869,1727122238818,-153.0,0.00032186,2]
[339011870,1727122238827,-153.0,0.00032186,2]
[339011871,1727122238837,-153.0,0.00032186,2]
[339011872,1727122238847,-153.0,0.00032186,2]
[339011873,1727122238857,-153.0,0.00032186,2]
[339011874,1727122238866,-153.0,0.00032187,2]
[339011875,1727122238876,-153.0,0.00032187,2]
[339011876,1727122238886,-153.0,0.00032187,2]
[339011877,1727122238895,-153.0,0.00032188,2]
[339011878,1727122238905,-153.0,0.00032188,2]
[339011879,1727122238914,-153.0,0.00032188,2]
[339011880,1727122238923,-153.0,0.00032188,2]
[339011881,1727122238933,-153.0,0.00032188,2]
[339011882,1727122238943,-153.0,0.00032188,2]
[339011883,1727122238952,-153.0,0.00032188,2]
[339011884,1727122238962,-153.0,0.00032188,2]
[339011885,1727122238971,-153.0,0.00032188,2]
[339011886,1727122238981,-153.0,0.00032188,2]
[339011887,1727122238990,-153.0,0.00032188,2]
[339011888,1727122239000,-153.0,0.00032189,2]
[339011889,1727122239010,-153.0,0.00032189,2]
[339011890,1727122239020,-153.0,0.00032189,2]
[339011891,1727122239029,-153.0,0.00032189,2]
[339011892,1727122239038,-153.0,0.00032189,2]
[339011893,1727122239048,-153.0,0.00032189,2]
[339011894,1727122239057,-153.0,0.00032189,2]
[339011895,1727122239067,-153.0,0.00032189,2]
[339011896,1727122239076,-153.0,0.00032189,2]
[339011897,1727122239085,-153.0,0.00032189,2]
[339011898,1727122239098,-153.0,0.00032189,2]
[339011899,1727122239107,-153.0,0.00032197,2]
[339011900,1727122239117,-153.0,0.00032197,2]
[339011901,1727122239127,-153.0,0.00032197,2]
[339011902,1727122239138,-153.0,0.00032197,2]
[339011903,1727122239147,-153.0,0.00032197,2]
[339011904,1727122239157,-153.0,0.00032197,2]
[339011905,1727122239167,-187.5,0.0003237,6]
[339011906,1727122239178,-500.0,0.00032561,120]
[339011907,1727122239187,-500.0,0.00032561,120]
[339011908,1727122239196,-222.83,0.00032561,120]
[339011909,1727122239206,-498.95160614,0.00032756,2]
[339011910,1727122239401,-498.9516061,0.00032761,2]
[339011911,1727122239412,-1000.0,0.00032766,2]
[339011912,1727122239423,-498.9516061,0.00032766,2]
[339011913,1727122239432,-498.9516061,0.00032771,2]
[339011914,1727122239442,-498.9516061,0.00032776,2]
[339011915,1727122239452,-500.0,0.00032845,2]
[339011916,1727122239461,-509.34844915,0.00032845,2]
[339011917,1727122239471,-209.31297752,0.00032845,2]
[339011918,1727122239481,-500.0,0.00032845,2]
[339011919,1727122239490,-517.82044452,0.00032845,2]
[339011920,1727122239500,-500.0,0.00032845,2]
[339011921,1727122239509,-500.0,0.00032845,2]
[339011922,1727122239519,-16122.8252655,0.00032846,4]
[339011923,1727122239529,-57147.7830643,0.00032846,5]
[339011924,1727122239542,-79396.1236187,0.00032846,5]
[339011925,1727122239552,-32245.6505311,0.00032856,4]
[339011926,1727122239562,-227573.177804,0.00032856,5]
[339011927,1727122239572,-21497.100354,0.00032866,4]
[339011928,1727122239582,-500.0,0.00032873,5]
[339011929,1727122239591,-500.0,0.00032876,30]
[339011930,1727122239601,-530.67,0.00032876,30]
[339011931,1727122239610,-500.0,0.00032876,30]
[339011932,1727122239620,-500.0,0.00032876,30]
[339011933,1727122239629,-500.0,0.00032876,30]
[339011934,1727122239639,-500.0,0.00032876,30]
[339011935,1727122239648,-336.82485693,0.00032876,30]
[339011936,1727122239658,-500.0,0.00032876,30]
[339011937,1727122239667,-500.0,0.00032876,10]
[339011938,1727122239676,-500.0,0.00032876,30]
[339011939,1727122239686,-500.0,0.00032876,30]
[339011940,1727122239695,-500.0,0.00032876,30]
[339011941,1727122239705,-500.0,0.00032876,30]
[339011943,1727122239714,-500.0,0.00032876,30]
[339011944,1727122239726,-500.0,0.00032876,30]
[339011945,1727122239735,-500.0,0.00032876,30]
[339011946,1727122239745,-500.0,0.00032876,30]
[339011947,1727122239754,-500.0,0.00032876,30]
[339011948,1727122239763,-499.03821822,0.00032876,30]
[339011949,1727122239773,-500.0,0.00032876,30]
[339011950,1727122239782,-526.95727546,0.00032876,30]
[339011951,1727122239792,-500.0,0.00032876,30]
[339011952,1727122239801,-500.0,0.00032876,30]
[339011953,1727122239810,-500.0,0.00032876,30]
[339011954,1727122239820,-500.0,0.00032876,30]
[339011955,1727122239830,-500.0,0.00032876,30]
[339011956,1727122239839,-500.0,0.00032876,30]
[339011957,1727122239849,-500.0,0.00032876,30]
[339011958,1727122239858,-500.0,0.00032876,30]
[339011959,1727122239868,-500.0,0.00032876,30]
[339011960,1727122239878,-286.31032426,0.00032876,30]
[339011961,1727122239888,-500.0,0.00032876,30]
[339011962,1727122239898,-503.53280699,0.00032876,30]
[339011963,1727122239907,-500.0,0.00032876,30]
[339011964,1727122239916,-500.0,0.00032876,30]
[339011965,1727122239926,-500.0,0.00032876,30]
[339011966,1727122239935,-500.0,0.00032876,30]
[339011967,1727122239945,-500.0,0.00032876,30]
[339011968,1727122239954,-500.0,0.00032876,7]
[339011969,1727122239964,-500.0,0.00032876,30]